bitfinex/quotes_SOLUSD_20250616
["timestamp","ask_amount","ask_price","bid_price","bid_amount"]
[1750033126443,27.44,152.44,152.4,8.09216181]
[1750033127281,27.44,152.44,152.41,8.09216181]
[1750033129662,27.44,152.44,152.36,26.0]
[1750033129965,0.28432314,152.43,152.39,8.09216181]
[1750033130173,0.28432314,152.43,152.4,8.09216181]
[1750033130390,27.44,152.44,152.41,8.09216181]
[1750033131068,27.44,152.44,152.4,8.09216181]
[1750033131658,27.44,152.44,152.35,22.66123382]
[1750033131659,27.44,152.44,152.41,8.09216181]
[1750033132288,27.44,152.44,152.4,8.09216181]
[1750033132289,35.53216181,152.44,152.4,8.09216181]
[1750033132497,27.44,152.44,152.4,8.09216181]
[1750033132678,35.53216181,152.44,152.4,8.09216181]
[1750033133095,27.44,152.44,152.4,8.09216181]
[1750033133304,27.44,152.44,152.41,8.09216181]
[1750033134013,27.44,152.44,152.35,16.09746181]
[1750033134014,8.37648495,152.43,152.35,8.0053]
[1750033134315,8.37648495,152.43,152.39,8.09216181]
[1750033134483,8.09216181,152.42,152.38,8.09216181]
[1750033134687,27.38,152.41,152.38,8.09216181]
[1750033135085,27.38,152.41,152.39,8.09216181]
[1750033135287,27.38,152.41,152.4,8.09216181]
[1750033135784,27.38,152.41,152.35,8.0053]
[1750033135987,27.38,152.41,152.39,8.09216181]
[1750033137982,27.38,152.41,152.4,8.09216181]
[1750033138488,27.38,152.41,152.39,8.09216181]
[1750033139214,27.38,152.41,152.38,8.09216181]
[1750033140595,0.28432314,152.4,152.35,8.0053]
[1750033140815,8.37648495,152.37,152.32,8.09216181]
[1750033141020,41.57216181,152.36,152.31,31.0111]
[1750033141223,8.09216181,152.33,152.31,25.0]
[1750033141393,27.38,152.32,152.31,25.0]
[1750033141808,61.00613381,152.32,152.31,25.0]
[1750033142004,18.933972,152.31,152.26,8.09216181]
[1750033142197,0.28432314,152.29,152.18,6.57116572]
[1750033142396,27.48,152.28,152.25,8.09216181]
[1750033143036,6.12,152.3,152.27,8.09216181]
[1750033143344,6.12,152.3,152.28,8.09216181]
[1750033143632,6.12,152.3,152.23,6.3987]
[1750033143838,6.12,152.3,152.29,8.09216181]
[1750033144210,8.09216181,152.33,152.23,8.0547]
[1750033144436,6.12,152.31,152.28,8.09216181]
[1750033144641,6.12,152.31,152.28,7.59216181]
[1750033144931,6.12,152.31,152.27,8.09216181]
[1750033145300,6.12,152.31,152.23,8.0547]
[1750033145301,6.12,152.31,152.28,8.09216181]
[1750033145925,6.12,152.31,152.23,8.0547]
[1750033146103,14.21216181,152.31,152.26,8.09216181]
[1750033146435,6.12,152.31,152.28,8.09216181]
[1750033146855,6.12,152.31,152.3,8.09216181]
[1750033147207,6.12,152.31,152.26,26.0]
[1750033147509,0.28432314,152.33,152.28,8.09216181]
[1750033147911,0.28432314,152.33,152.29,8.09216181]
[1750033147912,33.6,152.32,152.29,8.09216181]
[1750033148311,0.28432314,152.33,152.29,8.09216181]
[1750033148507,34.09216181,152.34,152.28,8.09216181]
[1750033148508,26.0,152.34,152.28,8.09216181]
[1750033148716,41.73216181,152.33,152.23,14.6235847]
[1750033148917,10.0,152.38,152.32,8.09216181]
[1750033148918,18.64964886,152.38,152.32,8.09216181]
[1750033149128,6.12,152.33,152.27,26.0]
[1750033149313,6.12,152.33,152.32,8.09216181]
[1750033150108,6.12,152.33,152.27,26.0]
[1750033150338,6.12,152.33,152.32,8.09216181]
[1750033150642,6.12,152.36,152.32,8.09216181]
[1750033150934,6.12,152.36,152.35,8.09216181]
[1750033151937,33.68,152.39,152.35,8.09216181]
[1750033152109,6.16,152.39,152.38,8.09216181]
[1750033152710,6.16,152.39,152.32,12.74525966]
[1750033152911,45.4,152.4,152.37,8.09216181]
[1750033153116,79.08,152.4,152.37,8.09216181]
[1750033153312,79.08,152.4,152.38,8.09216181]
[1750033153627,79.08,152.4,152.37,8.09216181]
[1750033154542,6.16,152.39,152.37,8.09216181]
[1750033154699,6.16,152.39,152.32,12.74525966]
[1750033154700,6.16,152.39,152.38,8.09216181]
[1750033154905,6.16,152.39,152.32,6.1802]
[1750033154906,6.16,152.39,152.35,8.09216181]
[1750033155143,6.16,152.39,152.36,8.09216181]
[1750033155347,6.16,152.39,152.37,8.09216181]
[1750033157204,6.16,152.39,152.38,8.09216181]
[1750033157827,6.16,152.39,152.37,8.09216181]
[1750033158011,79.04,152.4,152.37,8.09216181]
[1750033160126,79.04,152.4,152.38,8.09216181]
[1750033161341,45.4,152.4,152.34,6.56424354]
[1750033161512,45.4,152.4,152.39,8.09216181]
[1750033161903,18.933972,152.39,152.33,8.09216181]
[1750033162133,27.44,152.38,152.34,8.09216181]
[1750033162921,27.44,152.38,152.32,6.1802]
[1750033163136,27.44,152.38,152.36,8.09216181]
[1750033163440,27.44,152.38,152.35,8.09216181]
[1750033164039,27.44,152.38,152.36,8.09216181]
[1750033165126,33.6,152.38,152.36,8.09216181]
[1750033165332,33.6,152.38,152.32,6.1802]
[1750033165638,33.6,152.38,152.35,8.09216181]
[1750033165838,33.6,152.38,152.32,6.1802]
[1750033166041,8.09216181,152.36,152.28,32.0126]
[1750033166241,27.72432314,152.35,152.31,8.09216181]
[1750033166440,27.44,152.35,152.33,8.09216181]
[1750033167353,27.44,152.35,152.32,8.09216181]
[1750033168120,27.44,152.35,152.33,8.09216181]
[1750033168718,27.44,152.35,152.34,8.09216181]
[1750033169424,27.44,152.35,152.33,8.09216181]
[1750033169640,33.58,152.36,152.28,38.57939022]
[1750033169817,33.58,152.36,152.34,8.09216181]
[1750033170014,33.58,152.36,152.28,38.57939022]
[1750033170237,33.58,152.36,152.33,8.09216181]
[1750033171634,33.58,152.36,152.33,7.59216181]
[1750033171851,33.58,152.36,152.34,8.09216181]
[1750033172538,33.58,152.36,152.29,6.56637481]
[1750033172853,33.58,152.36,152.34,8.09216181]
[1750033175064,33.58,152.36,152.33,8.09216181]
[1750033176360,33.58,152.36,152.34,8.09216181]
[1750033180043,33.58,152.36,152.33,8.09216181]
[1750033180457,33.58,152.36,152.34,8.09216181]
[1750033182538,33.58,152.36,152.31,26.0]
[1750033182853,33.58,152.36,152.34,4.98366261]
[1750033183668,33.58,152.36,152.35,4.98366261]
[1750033183835,33.58,152.36,152.34,4.98366261]
[1750033185833,33.58,152.36,152.31,26.0]
[1750033186048,33.58,152.36,152.33,4.98366261]
[1750033186450,33.58,152.36,152.34,4.98366261]
[1750033186653,33.58,152.36,152.31,26.0]
[1750033186654,33.58,152.36,152.35,4.98366261]
[1750033187059,6.04,152.38,152.35,4.98366261]
[1750033187261,6.04,152.38,152.33,26.0]
[1750033187447,6.04,152.38,152.36,4.98366261]
[1750033187847,6.04,152.38,152.37,4.98366261]
[1750033190169,33.36,152.41,152.37,4.98366261]
[1750033190459,33.36,152.41,152.4,4.98366261]
[1750033190460,38.23786026,152.41,152.4,4.98366261]
[1750033191360,10.91786026,152.41,152.4,4.98366261]
[1750033191564,6.04,152.41,152.4,4.98366261]
[1750033192840,6.04,152.44,152.4,4.98366261]
[1750033193038,33.34,152.44,152.43,4.98366261]
[1750033193260,6.04,152.44,152.43,4.98366261]
[1750033193463,13.50510097,152.46,152.43,4.98366261]
[1750033193649,41.96724071,152.46,152.44,4.98366261]
[1750033193969,4.87786026,152.45,152.44,4.98366261]
[1750033195276,14.66724071,152.46,152.44,4.98366261]
[1750033195466,14.66724071,152.46,152.45,4.98366261]
[1750033198657,14.66724071,152.46,152.41,1.5146]
[1750033198892,32.26366261,152.45,152.38,26.0]
[1750033199051,32.26366261,152.45,152.38,4.98366261]
[1750033199052,4.98366261,152.42,152.38,4.98366261]
[1750033199382,27.28,152.41,152.38,4.98366261]
[1750033200478,26.0,152.44,152.4,4.98366261]
[1750033200770,26.0,152.44,152.37,4.98366261]
[1750033200771,0.28432314,152.45,152.42,4.98366261]
[1750033201075,33.58432314,152.45,152.42,8.1126717]
[1750033201246,38.45510327,152.45,152.41,8.1126717]
[1750033201684,6.32432314,152.45,152.41,8.1126717]
[1750033201856,8.62724071,152.46,152.44,8.1126717]
[1750033202056,8.62724071,152.46,152.45,8.1126717]
[1750033202685,8.62724071,152.46,152.45,16.2253434]
[1750033202876,6.04,152.53,152.45,16.2253434]
[1750033203180,33.32,152.53,152.51,8.1126717]
[1750033203383,6.04,152.53,152.51,8.1126717]
[1750033203556,6.04,152.53,152.46,26.0]
[1750033203557,6.04,152.53,152.46,34.1126717]
[1750033203763,6.04,152.53,152.52,8.1126717]
[1750033204886,0.14216157,152.55,152.52,8.1126717]
[1750033205257,33.46216157,152.55,152.53,8.1126717]
[1750033205457,33.46216157,152.55,152.52,8.1126717]
[1750033205684,27.28,152.54,152.52,8.1126717]
[1750033206380,33.32,152.54,152.52,8.1126717]
[1750033206745,33.3,152.54,152.52,8.1126717]
[1750033207182,0.28432314,152.55,152.52,8.1126717]
[1750033207360,33.3,152.54,152.52,8.1126717]
[1750033208492,6.04,152.54,152.52,8.1126717]
[1750033208682,33.3,152.54,152.52,8.1126717]
[1750033209068,33.3,152.54,152.46,123.3126717]
[1750033209267,33.3,152.54,152.51,8.1126717]
[1750033210585,33.3,152.54,152.52,8.1126717]
[1750033211897,33.3,152.54,152.51,8.1126717]
[1750033212562,33.3,152.54,152.46,8.1126717]
[1750033212563,6.04,152.54,152.53,8.1126717]
[1750033212782,33.26,152.54,152.53,8.1126717]
[1750033213475,0.28432314,152.56,152.53,8.1126717]
[1750033213778,5.98,152.56,152.54,8.1126717]
[1750033213977,27.22,152.55,152.54,8.1126717]
[1750033216469,27.2,152.55,152.54,8.1126717]
[1750033217689,27.2,152.55,152.53,8.1126717]
[1750033220327,27.2,152.55,152.54,8.1126717]
[1750033220872,27.2,152.55,152.54,4.97065372]
[1750033223802,5.98,152.56,152.54,4.97065372]
[1750033223989,33.12,152.56,152.54,4.97065372]
[1750033226190,33.1,152.56,152.55,4.97065372]
[1750033227502,5.98,152.56,152.55,4.97065372]
[1750033227887,33.1,152.56,152.55,4.97065372]
[1750033230682,33.1,152.56,152.5,6.0033]
[1750033230877,33.1,152.56,152.47,90.8171]
[1750033230878,18.933972,152.53,152.47,90.8171]
[1750033231107,0.28432314,152.51,152.47,4.97065372]
[1750033231290,27.1,152.5,152.47,4.97065372]
[1750033232507,27.1,152.5,152.49,4.97065372]
[1750033232715,27.12,152.52,152.49,4.97065372]
[1750033232886,27.12,152.52,152.5,4.97065372]
[1750033233086,27.12,152.52,152.44,32.55978961]
[1750033233298,27.12,152.52,152.49,4.97065372]
[1750033233490,0.28432314,152.53,152.49,4.97065372]
[1750033233787,33.1,152.52,152.44,32.55978961]
[1750033234005,33.1,152.52,152.5,4.97065372]
[1750033234185,0.28432314,152.53,152.5,4.97065372]
[1750033234508,33.08,152.52,152.5,4.97065372]
[1750033235378,0.28432314,152.53,152.5,4.97065372]
[1750033235605,27.1,152.52,152.5,4.97065372]
[1750033235998,27.1,152.52,152.47,26.0]
[1750033236213,27.1,152.52,152.5,4.97065372]
[1750033237018,0.28432314,152.51,152.47,4.97065372]
[1750033237185,27.1,152.5,152.47,4.97065372]
[1750033237587,27.1,152.5,152.48,4.97065372]
[1750033238710,27.1,152.5,152.49,4.97065372]
[1750033239993,0.28432314,152.51,152.49,4.97065372]
[1750033240293,33.36432314,152.51,152.49,4.97065372]
[1750033249796,27.06,152.48,152.45,4.97065372]
[1750033250224,27.34432314,152.48,152.47,4.97065372]
[1750033251224,27.34432314,152.48,152.42,6.4525]
[1750033251534,27.34432314,152.48,152.46,4.97065372]
[1750033252202,27.34432314,152.48,152.42,6.4525]
[1750033252397,0.28432314,152.47,152.42,6.4525]
[1750033252604,0.28432314,152.47,152.44,4.97065372]
[1750033252809,27.06,152.46,152.44,4.97065372]
[1750033253127,27.06,152.46,152.45,4.97065372]
[1750033255427,27.06,152.46,152.44,4.97065372]
[1750033255813,27.06,152.46,152.45,4.97065372]
[1750033256922,27.06,152.46,152.41,26.0]
[1750033257124,27.06,152.46,152.45,4.97065372]
[1750033257316,27.34432314,152.48,152.45,4.97065372]
[1750033258022,27.32432314,152.48,152.47,4.97065372]
[1750033259634,27.32432314,152.48,152.46,4.97065372]
[1750033259832,26.0,152.5,152.42,26.0]
[1750033260010,0.28432314,152.49,152.47,4.97065372]
[1750033260211,27.32432314,152.49,152.45,4.97065372]
[1750033260402,32.18783752,152.49,152.45,4.97065372]
[1750033260806,27.32432314,152.49,152.46,4.97065372]
[1750033262719,32.18692462,152.49,152.47,4.97065372]
[1750033262933,32.18692462,152.49,152.46,4.97065372]
[1750033263333,32.18692462,152.49,152.45,4.97065372]
[1750033263531,32.18692462,152.49,152.46,4.97065372]
[1750033264331,0.28432314,152.47,152.44,4.97065372]
[1750033264525,26.0,152.5,152.42,26.0]
[1750033264837,18.933972,152.49,152.46,4.97065372]
[1750033265036,0.28432314,152.47,152.45,4.97065372]
[1750033265247,0.28432314,152.47,152.46,4.97065372]
[1750033265445,0.28432314,152.47,152.45,4.97065372]
[1750033265948,0.28432314,152.47,152.46,4.97065372]
[1750033267219,18.933972,152.47,152.39,1.6304]
[1750033267535,23.79691057,152.47,152.43,4.97065372]
[1750033268049,23.79691057,152.47,152.44,4.97065372]
[1750033268224,23.79691057,152.47,152.45,4.97065372]
[1750033268424,23.79741097,152.47,152.45,4.97065372]
[1750033268833,18.933972,152.47,152.45,4.97065372]
[1750033269144,23.79817443,152.47,152.45,4.97065372]
[1750033269456,23.79817443,152.47,152.41,26.0]
[1750033269747,23.79817443,152.47,152.44,4.97065372]
[1750033270344,0.28432314,152.43,152.4,4.97065372]
[1750033270644,0.28432314,152.41,152.39,4.97065372]
[1750033270951,0.28432314,152.41,152.35,1.5366]
[1750033271248,0.28432314,152.41,152.4,4.97065372]
[1750033271449,0.28432314,152.41,152.35,1.5366]
[1750033271450,18.933972,152.41,152.35,1.5366]
[1750033271650,5.9,152.4,152.38,4.97065372]
[1750033271825,5.9,152.4,152.39,4.97065372]
[1750033271826,6.18432314,152.4,152.39,4.97065372]
[1750033273269,6.18432314,152.4,152.35,27.5366]
[1750033273418,6.18432314,152.4,152.39,4.97065372]
[1750033275321,6.18432314,152.4,152.35,27.5366]
[1750033275322,0.28432314,152.39,152.35,26.0]
[1750033275521,27.34432314,152.39,152.37,4.97065372]
[1750033275719,27.34432314,152.39,152.38,4.97065372]
[1750033276167,30.57611476,152.39,152.38,4.97065372]
[1750033277336,30.29179162,152.39,152.34,26.0]
[1750033277528,30.29179162,152.39,152.38,4.97065372]
[1750033278136,30.29179162,152.39,152.34,26.0]
[1750033278327,30.29179162,152.39,152.38,4.97065372]
[1750033279455,27.06,152.39,152.38,4.97065372]
[1750033281276,27.06,152.39,152.34,26.0]
[1750033281428,27.06,152.39,152.38,4.97065372]
[1750033282028,9.22521887,152.4,152.38,4.97065372]
[1750033282227,9.50954201,152.4,152.39,4.97065372]
[1750033282527,9.50954201,152.4,152.34,26.0]
[1750033282735,9.50954201,152.4,152.38,4.97065372]
[1750033282950,9.50954201,152.4,152.39,4.97065372]
[1750033289573,9.50954201,152.4,152.34,26.0]
[1750033289574,0.28432314,152.39,152.34,26.0]
[1750033289967,27.30432314,152.39,152.37,4.97065372]
[1750033290280,0.28432314,152.37,152.35,4.97065372]
[1750033290449,0.28432314,152.37,152.36,4.97065372]
[1750033290873,27.30432314,152.37,152.36,4.97065372]
[1750033292483,27.30432314,152.37,152.31,90.7389]
[1750033292792,27.02,152.37,152.31,90.7389]
[1750033292963,27.02,152.39,152.31,97.30443885]
[1750033293281,0.28432314,152.38,152.31,97.30443885]
[1750033294257,0.28432314,152.38,152.31,8.10443885]
[1750033294476,0.28432314,152.38,152.37,4.97065372]
[1750033296159,0.28432314,152.38,152.33,26.0]
[1750033296660,0.28432314,152.38,152.37,4.97065372]
[1750033297576,0.28432314,152.38,152.31,1.5389]
[1750033297772,0.28432314,152.36,152.35,4.97065372]
[1750033300062,0.28432314,152.36,152.31,1.5389]
[1750033300264,0.28432314,152.36,152.34,4.97065372]
[1750033301186,0.28432314,152.36,152.31,1.5389]
[1750033301386,0.28432314,152.36,152.33,4.97065372]
[1750033301596,0.28432314,152.36,152.31,1.5389]
[1750033301897,0.28432314,152.36,152.33,4.97065372]
[1750033302077,0.28432314,152.36,152.35,4.97065372]
[1750033302389,0.28432314,152.36,152.34,4.97065372]
[1750033303689,0.28432314,152.36,152.35,4.97065372]
[1750033304376,0.28432314,152.38,152.35,4.97065372]
[1750033304884,0.14216157,152.38,152.37,4.97065372]
[1750033305083,0.28432314,152.38,152.37,4.97065372]
[1750033305282,0.28432314,152.32,152.21,6.6388]
[1750033305488,27.02,152.31,152.29,4.97065372]
[1750033305685,27.30432314,152.31,152.3,4.97065372]
[1750033307799,32.9,152.31,152.27,7.5508]
[1750033307976,32.9,152.31,152.3,4.97065372]
[1750033308687,0.28432314,152.34,152.28,4.97065372]
[1750033308900,27.02,152.32,152.28,4.97065372]
[1750033309278,27.04,152.33,152.28,4.97065372]
[1750033309602,27.04,152.33,152.28,30.97065372]
[1750033309768,27.04,152.33,152.28,37.53734653]
[1750033309967,27.04,152.33,152.32,4.97065372]
[1750033310199,6.00216157,152.34,152.32,4.97065372]
[1750033312279,6.14432314,152.34,152.33,4.97065372]
[1750033312473,6.14432314,152.34,152.28,37.53736334]
[1750033312673,6.14432314,152.34,152.33,4.97065372]
[1750033313179,0.14216157,152.34,152.33,4.97065372]
[1750033313707,6.00216157,152.35,152.3,26.0]
[1750033313908,33.16432314,152.35,152.34,4.97065372]
[1750033314687,41.49765647,152.35,152.34,4.97065372]
[1750033316298,8.33333333,152.35,152.34,4.97065372]
[1750033316690,8.33333333,152.35,152.34,11.53491786]
[1750033316929,8.33333333,152.35,152.34,16.50557158]
[1750033317225,8.33333333,152.35,152.34,35.15522044]
[1750033317432,5.86,152.43,152.37,26.0]
[1750033317607,4.86721249,152.47,152.42,4.97065372]
[1750033317793,32.9,152.48,152.46,4.97065372]
[1750033318129,32.9,152.48,152.47,4.97065372]
[1750033318893,33.18432314,152.48,152.47,4.97065372]
[1750033319589,32.9,152.48,152.47,4.97065372]
[1750033320000,5.86,152.48,152.47,4.97065372]
[1750033320308,6.14432314,152.48,152.47,4.97065372]
[1750033320508,6.00216157,152.48,152.47,4.97065372]
[1750033320894,6.14432314,152.48,152.47,4.97065372]
[1750033321210,0.28432314,152.48,152.47,4.97065372]
[1750033321402,27.30432314,152.5,152.47,4.97065372]
[1750033321598,5.86,152.51,152.46,4.97065372]
[1750033321599,5.86,152.51,152.49,4.97065372]
[1750033321804,59.59333333,152.55,152.5,4.97065372]
[1750033322017,59.59333333,152.55,152.49,26.0]
[1750033322018,27.0,152.54,152.49,26.0]
[1750033322226,27.0,152.54,152.53,4.97065372]
[1750033322599,0.28432314,152.54,152.53,4.97065372]
[1750033322807,86.63333333,152.55,152.53,4.97065372]
[1750033323027,86.63333333,152.55,152.54,4.97065372]
[1750033323307,18.64964886,152.54,152.43,95.2538]
[1750033323535,0.28432314,152.53,152.49,4.97065372]
[1750033323707,0.28432314,152.53,152.52,4.97065372]
[1750033323906,27.20216157,152.53,152.52,4.97065372]
[1750033324221,0.28432314,152.53,152.52,4.97065372]
[1750033326034,0.14216157,152.53,152.52,4.97065372]
[1750033326607,0.28432314,152.54,152.52,4.97065372]
[1750033326824,0.28432314,152.54,152.53,4.97065372]
[1750033328717,5.84,152.58,152.53,4.97065372]
[1750033329027,27.32432314,152.58,152.57,4.97065372]
[1750033329526,27.04,152.58,152.57,4.97065372]
[1750033329911,27.18216157,152.58,152.57,4.97065372]
[1750033330336,0.14216157,152.58,152.57,4.97065372]
[1750033330645,0.28432314,152.58,152.57,4.97065372]
[1750033330853,0.14216157,152.57,152.52,26.0]
[1750033331015,0.14216157,152.57,152.56,4.97065372]
[1750033331954,0.28432314,152.58,152.56,4.97065372]
[1750033332241,0.28432314,152.58,152.57,4.97065372]
[1750033332539,5.84,152.59,152.57,4.97065372]
[1750033332752,5.84,152.59,152.58,4.97065372]
[1750033333049,5.98216157,152.59,152.55,4.97065372]
[1750033333222,6.12432314,152.59,152.58,4.97065372]
[1750033333862,5.84,152.59,152.58,4.97065372]
[1750033334167,8.88308196,152.6,152.58,4.97065372]
[1750033334318,8.88308196,152.6,152.59,30.97065372]
[1750033334517,5.86,152.65,152.59,30.97065372]
[1750033334747,6.14432314,152.65,152.64,4.97065372]
[1750033334921,5.86,152.65,152.64,4.97065372]
[1750033338865,5.86,152.65,152.64,9.94130744]
[1750033339946,5.86,152.65,152.64,4.97065372]
[1750033341147,5.86,152.65,152.64,9.94130744]
[1750033342544,28.63816157,152.7,152.64,9.94130744]
[1750033342545,0.14216157,152.7,152.64,9.94130744]
[1750033342745,0.28432314,152.71,152.69,4.97065372]
[1750033343065,0.28432314,152.71,152.7,4.97065372]
[1750033343275,51.44964886,152.72,152.7,4.97065372]
[1750033343276,5.84,152.72,152.7,4.97065372]
[1750033343448,5.84,152.72,152.71,4.97065372]
[1750033343647,9.06638148,152.74,152.71,4.97065372]
[1750033343977,9.06638148,152.74,152.73,4.97065372]
[1750033344956,18.79181043,152.77,152.73,4.97065372]
[1750033345159,18.79181043,152.77,152.69,1.5213]
[1750033345358,18.64964886,152.74,152.67,26.0]
[1750033345560,18.933972,152.73,152.69,4.97065372]
[1750033345879,18.933972,152.73,152.7,4.97065372]
[1750033346448,18.933972,152.73,152.65,27.5799]
[1750033346449,0.28432314,152.7,152.64,11.32655372]
[1750033346649,51.793972,152.73,152.69,4.97065372]
[1750033347163,51.793972,152.73,152.7,4.97065372]
[1750033348777,51.793972,152.73,152.69,4.97065372]
[1750033353173,51.793972,152.73,152.7,4.97065372]
[1750033354086,51.793972,152.73,152.69,4.97065372]
[1750033358794,51.793972,152.73,152.64,37.32655372]
[1750033358976,0.28432314,152.7,152.64,6.3559]
[1750033359178,27.24432314,152.7,152.67,4.97065372]
[1750033360196,27.24432314,152.7,152.68,4.97065372]
[1750033360862,0.28432314,152.68,152.61,1.5799]
[1750033361081,0.28432314,152.68,152.65,4.97065372]
[1750033361082,27.24432314,152.68,152.65,4.97065372]
[1750033361478,27.24432314,152.68,152.64,4.97065372]
[1750033363790,32.21497686,152.68,152.61,1.5799]
[1750033363986,0.28432314,152.66,152.63,4.97065372]
[1750033364598,0.28432314,152.66,152.6,32.496]
[1750033364893,0.28432314,152.66,152.62,4.97065372]
[1750033365219,0.28432314,152.66,152.63,4.97065372]
[1750033366594,0.28432314,152.66,152.6,32.496]
[1750033366810,0.28432314,152.66,152.63,4.97065372]
[1750033367985,0.28432314,152.66,152.6,32.496]
[1750033368319,0.28432314,152.66,152.63,4.97065372]
[1750033368916,0.28432314,152.66,152.64,4.97065372]
[1750033369413,0.28432314,152.66,152.6,32.496]
[1750033369639,0.28432314,152.66,152.64,4.97065372]
[1750033370005,0.28432314,152.69,152.65,4.97065372]
[1750033370235,0.28432314,152.67,152.66,4.97065372]
[1750033372699,0.28432314,152.67,152.65,4.97065372]
[1750033375234,18.933972,152.67,152.6,32.496]
[1750033375550,0.28432314,152.64,152.56,7.8466]
[1750033375828,0.28432314,152.64,152.61,4.97065372]
[1750033376210,0.28432314,152.64,152.56,14.40132282]
[1750033376407,0.28432314,152.64,152.61,4.97065372]
[1750033377140,0.28432314,152.64,152.63,4.97065372]
[1750033378519,0.28432314,152.64,152.61,4.97065372]
[1750033379627,18.64964886,152.61,152.52,12.99440293]
[1750033379826,0.28432314,152.6,152.52,12.99440293]
[1750033380010,0.28432314,152.58,152.52,12.99440293]
[1750033380333,0.28432314,152.56,152.52,4.97065372]
[1750033380510,0.28432314,152.54,152.48,7.7939]
[1750033380836,0.28432314,152.54,152.5,4.97065372]
[1750033381135,0.28432314,152.54,152.51,4.97065372]
[1750033382953,9.84006944,152.56,152.48,7.7939]
[1750033382954,4.86941572,152.56,152.48,7.7939]
[1750033383247,5.84,152.6,152.55,4.97065372]
[1750033383461,5.84,152.6,152.58,4.97065372]
[1750033383817,0.28432314,152.59,152.58,4.97065372]
[1750033384217,5.84,152.6,152.58,4.97065372]
[1750033384456,0.14216157,152.59,152.58,4.97065372]
[1750033384816,0.28432314,152.59,152.58,4.97065372]
[1750033386527,5.1805165,152.59,152.58,30.97065372]
[1750033386729,0.28432314,152.59,152.58,30.97065372]
[1750033386941,5.18030936,152.59,152.58,30.97065372]
[1750033387222,5.18045749,152.59,152.58,30.97065372]
[1750033387457,0.28432314,152.59,152.58,30.97065372]
[1750033387654,5.18040165,152.59,152.58,30.97065372]
[1750033387957,0.28432314,152.59,152.58,30.97065372]
[1750033388135,5.18048233,152.59,152.58,30.97065372]
[1750033388329,0.28432314,152.6,152.58,4.97065372]
[1750033388650,5.18048336,152.59,152.58,4.97065372]
[1750033388818,0.28432314,152.59,152.58,4.97065372]
[1750033389019,5.17964553,152.59,152.58,4.97065372]
[1750033389335,5.17964553,152.59,152.56,26.0]
[1750033389336,0.28432314,152.59,152.56,26.0]
[1750033389646,5.14154755,152.59,152.58,4.97065372]
[1750033389948,0.28432314,152.59,152.58,4.97065372]
[1750033390628,5.1410358,152.59,152.58,4.97065372]
[1750033390957,0.28432314,152.59,152.58,4.97065372]
[1750033391132,5.14110647,152.59,152.58,4.97065372]
[1750033391331,0.28432314,152.59,152.58,4.97065372]
[1750033391526,5.14120526,152.59,152.58,4.97065372]
[1750033391863,0.28432314,152.59,152.58,4.97065372]
[1750033392549,5.1420106,152.59,152.57,4.97065372]
[1750033392745,4.85730562,152.58,152.57,4.97065372]
[1750033392956,4.85727813,152.58,152.57,4.97065372]
[1750033393127,4.85742348,152.58,152.57,4.97065372]
[1750033393454,4.85740772,152.58,152.57,4.97065372]
[1750033393655,0.28432314,152.59,152.57,4.97065372]
[1750033393822,4.85743753,152.58,152.57,4.97065372]
[1750033394027,4.85747461,152.58,152.57,4.97065372]
[1750033394229,0.28432314,152.59,152.57,4.97065372]
[1750033394430,0.28432314,152.59,152.53,32.55606968]
[1750033394431,0.28432314,152.59,152.58,4.97065372]
[1750033394636,5.1421308,152.59,152.58,4.97065372]
[1750033394965,0.28432314,152.59,152.58,4.97065372]
[1750033395257,5.14298707,152.59,152.58,4.97065372]
[1750033395462,0.28432314,152.59,152.58,4.97065372]
[1750033395643,5.1438169,152.59,152.58,4.97065372]
[1750033395966,5.14390865,152.59,152.58,4.97065372]
[1750033396168,0.28432314,152.59,152.53,32.55606968]
[1750033396461,0.28432314,152.59,152.58,4.97065372]
[1750033400358,5.1568365,152.59,152.58,4.97065372]
[1750033400652,5.157736,152.59,152.58,4.97065372]
[1750033400854,5.15773545,152.59,152.58,4.97065372]
[1750033401167,5.15772716,152.59,152.58,4.97065372]
[1750033401353,5.15819321,152.59,152.58,4.97065372]
[1750033401560,5.15811352,152.59,152.58,4.97065372]